fUSD/lending_fUSD_20250226
["ID","MTS","AMOUNT","RATE_DAILY","PERIOD"]
[354615717,1740595927520,-1466.22,0.0003863,14]
[354615719,1740595927529,-391.76488647,0.0003863,14]
[354615720,1740595927538,-1152.19,0.0003863,14]
[354615722,1740595927548,-2482.2,0.0003863,14]
[354615724,1740595927557,-1828.52,0.0003863,14]
[354615726,1740595927567,-500.0,0.0003863,14]
[354615728,1740595927576,-527.63,0.0003863,14]
[354615730,1740595927586,-873.77,0.0003863,14]
[354615732,1740595927595,-1665.67,0.0003863,14]
[354615734,1740595927605,-500.0,0.0003863,14]
[354615736,1740595927614,-1934.6,0.0003863,14]
[354615738,1740595927625,-786.06,0.0003863,14]
[354615740,1740595927635,-1875.12,0.0003863,14]
[354615742,1740595927644,-1075.72,0.0003863,14]
[354615744,1740595927654,-554.85,0.0003863,14]
[354615746,1740595927663,-956.32,0.0003863,14]
[354615748,1740595927674,-1163.37,0.0003863,14]
[354615750,1740595927684,-500.0,0.0003863,14]
[354615752,1740595927694,-1037.67,0.0003863,14]
[354615754,1740595927704,-2110.11,0.0003863,14]
[354615756,1740595927714,-655.67,0.0003863,14]
[354615758,1740595927724,-519.01,0.0003863,14]
[354615760,1740595927734,-500.0,0.0003863,14]
[354615762,1740595927744,-754.12,0.0003863,14]
[354615772,1740595927829,-1595.01,0.0003863,14]
[354615774,1740595927839,-1351.39,0.0003863,14]
[354615776,1740595927848,-883.23,0.0003863,14]
[354615778,1740595927857,-978.64,0.0003863,14]
[354615780,1740595927867,-544.48,0.0003863,14]
[354615783,1740595927889,-1282.93,0.0003863,14]
[354615785,1740595927901,-1979.65,0.0003863,14]
[354615787,1740595927911,-500.0,0.0003863,14]
[354615789,1740595927920,-500.0,0.0003863,14]
[354615791,1740595927930,-1465.82,0.0003863,14]
[354615793,1740595927940,-500.0,0.0003863,14]
[354615795,1740595927950,-1395.89,0.0003863,14]
[354615797,1740595927961,-854.86,0.0003863,14]
[354615798,1740595927972,-1505.0,0.0003863,14]
[354615800,1740595927983,-924.09,0.0003863,14]
[354615802,1740595927993,-711.08,0.0003863,14]
[354615805,1740595928005,-552.43,0.0003863,14]
[354615807,1740595928017,-895.76,0.0003863,14]
[354615809,1740595928027,-500.0,0.0003863,14]
[354615810,1740595928037,-500.0,0.0003863,14]
[354615812,1740595928046,-932.59,0.0003863,14]
[354615814,1740595928056,-1558.86,0.0003863,14]
[354615816,1740595928066,-912.19,0.0003863,14]
[354615818,1740595928075,-551.46,0.0003863,14]
[354615820,1740595928085,-3271.55,0.0003863,14]
[354615822,1740595928096,-3117.32,0.0003863,14]
[354615824,1740595928105,-500.0,0.0003863,14]
[354615826,1740595928114,-896.05,0.0003863,14]
[354615828,1740595928126,-1469.5,0.0003863,14]
[354615830,1740595928135,-500.0,0.0003863,14]
[354615832,1740595928145,-500.0,0.0003863,14]
[354615834,1740595928155,-500.0,0.0003863,14]
[354615836,1740595928164,-1970.34,0.0003863,14]
[354615838,1740595928175,-1219.67,0.0003863,14]
[354615840,1740595928186,-500.0,0.0003863,14]
[354615842,1740595928196,-500.0,0.0003863,14]
[354615844,1740595928206,-1258.23,0.0003863,14]
[354615846,1740595928217,-1003.98,0.0003863,14]
[354615848,1740595928227,-802.71,0.0003863,14]
[354615850,1740595928236,-1048.22,0.0003863,14]
[354615852,1740595928246,-500.0,0.0003863,14]
[354615854,1740595928256,-12754.69,0.0003863,14]
[354615856,1740595928265,-760.48,0.0003863,14]
[354615858,1740595928275,-500.0,0.0003863,14]
[354615860,1740595928284,-1559.74,0.0003863,14]
[354615862,1740595928295,-1039.17,0.0003863,14]
[354615864,1740595928304,-968.47,0.0003863,14]
[354615866,1740595928314,-975.3,0.0003863,14]
[354615868,1740595928323,-884.61,0.0003863,14]
[354615870,1740595928333,-581.51,0.0003863,14]
[354615872,1740595928342,-677.65,0.0003863,14]
[354615874,1740595928352,-559.35,0.0003863,14]
[354615876,1740595928361,-500.0,0.0003863,14]
[354615878,1740595928371,-1472.3,0.0003863,14]
[354615880,1740595928383,-1068.0,0.0003863,14]
[354615883,1740595928393,-1096.63,0.0003863,14]
[354615885,1740595928403,-882.85,0.0003863,14]
[354615887,1740595928414,-1708.56,0.0003863,14]
[354615889,1740595928424,-505.62,0.0003863,14]
[354615891,1740595928434,-248.3243766,0.0003863,14]
[354615893,1740595928444,-966.9,0.0003863,14]
[354615895,1740595928454,-1141.53,0.0003863,7]
[354615897,1740595928463,-1382.5,0.0003863,14]
[354615899,1740595928472,-811.04,0.0003863,14]
[354615901,1740595928482,-669.94,0.0003863,14]
[354615903,1740595928491,-691.77,0.0003863,14]
[354615905,1740595928501,-530.0,0.0003863,14]
[354615907,1740595928511,-1910.93,0.0003863,14]
[354615909,1740595928520,-500.0,0.0003863,14]
[354615911,1740595928529,-500.0,0.0003863,14]
[354615913,1740595928539,-874.49,0.0003863,14]
[354615915,1740595928548,-776.22,0.0003863,14]
[354615917,1740595928557,-2493.41,0.0003863,14]
[354615919,1740595928567,-811.0,0.0003863,14]
[354615921,1740595928576,-2143.28,0.0003863,14]
[354615923,1740595928585,-1621.78,0.0003863,14]
[354615925,1740595928594,-2617.36,0.0003863,14]
[354615927,1740595928604,-500.0,0.0003863,14]
[354615929,1740595928614,-500.0,0.0003863,14]
[354615931,1740595928625,-2319.53,0.0003863,14]
[354615933,1740595928635,-500.0,0.0003863,14]
[354615935,1740595928644,-500.0,0.0003863,14]
[354615937,1740595928653,-529.04,0.0003863,14]
[354615939,1740595928662,-1163.2,0.0003863,14]
[354615941,1740595928671,-768.45,0.0003863,14]
[354615943,1740595928681,-500.0,0.0003863,14]
[354615945,1740595928690,-500.0,0.0003863,14]
[354615946,1740595928700,-500.0,0.0003863,14]
[354615947,1740595928709,-500.0,0.0003863,14]
[354615948,1740595928719,-911.1,0.0003863,14]
[354615949,1740595928728,-1280.98,0.0003863,14]
[354615950,1740595928737,-2143.46,0.0003863,14]
[354615951,1740595928747,-500.0,0.0003863,14]
[354615952,1740595928756,-1855.75,0.0003863,14]
[354615953,1740595928765,-873.58,0.0003863,14]
[354615954,1740595928775,-939.46,0.0003863,14]
[354615955,1740595928784,-500.0,0.0003863,14]
[354615956,1740595928794,-500.0,0.0003863,14]
[354615957,1740595928804,-500.0,0.0003863,14]
[354615958,1740595928814,-1902.32,0.0003863,14]
[354615959,1740595928824,-1142.01,0.0003863,14]
[354615960,1740595928834,-938.37,0.0003863,14]
[354615961,1740595928843,-800.79,0.0003863,14]
[354615962,1740595928852,-512.47,0.0003863,14]
[354615963,1740595928862,-2507.28,0.0003863,2]
[354615965,1740595928872,-731.9,0.0003863,14]
[354615966,1740595928884,-500.0,0.0003863,14]
[354615968,1740595928894,-1981.71,0.0003863,14]
[354615970,1740595928904,-1276.51,0.0003863,14]
[354615972,1740595928915,-708.24,0.0003863,14]
[354615974,1740595928925,-500.0,0.0003863,14]
[354615976,1740595928935,-2733.74,0.0003863,14]
[354615978,1740595928945,-2252.01,0.0003863,14]
[354615980,1740595928955,-891.14,0.0003863,14]
[354615982,1740595928967,-500.0,0.0003863,14]
[354615984,1740595928979,-642.98,0.0003863,14]
[354615986,1740595928988,-552.36,0.0003863,14]
[354615988,1740595928997,-630.12,0.0003863,14]
[354615990,1740595929012,-500.0,0.0003863,14]
[354615992,1740595929022,-1991.31,0.0003863,14]
[354615994,1740595929032,-1022.27,0.0003863,14]
[354615996,1740595929041,-1294.07,0.0003863,14]
[354615998,1740595929051,-1853.21,0.0003863,14]
[354616000,1740595929061,-630.96,0.0003863,14]
[354616002,1740595929070,-1573.28,0.0003863,14]
[354616004,1740595929080,-2426.57,0.0003863,14]
[354616006,1740595929090,-2490.78,0.0003863,14]
[354616008,1740595929099,-1150.32,0.0003863,14]
[354616010,1740595929110,-715.02,0.0003863,14]
[354616012,1740595929119,-3484.94,0.0003863,14]
[354616014,1740595929133,-500.0,0.0003863,14]
[354616016,1740595929143,-2771.33,0.0003863,14]
[354616018,1740595929153,-500.0,0.0003863,14]
[354616020,1740595929163,-1596.62,0.0003863,14]
[354616022,1740595929174,-1876.78,0.0003863,14]
[354616024,1740595929184,-1560.4,0.0003863,14]
[354616026,1740595929194,-6192.85,0.0003863,14]
[354616028,1740595929205,-647.32,0.0003863,14]
[354616030,1740595929216,-501.35004476,0.0003863,14]
[354616032,1740595929227,-1726.29,0.0003863,14]
[354616033,1740595929238,-2725.95,0.0003863,14]
[354616035,1740595929247,-1676.26,0.0003863,14]
[354616037,1740595929257,-563.72,0.0003863,14]
[354616039,1740595929267,-944.42,0.0003863,14]
[354616041,1740595929277,-3837.57,0.0003863,14]
[354616043,1740595929286,-500.0,0.0003863,14]
[354616045,1740595929296,-1361.35,0.0003863,14]
[354616047,1740595929306,-1302.57,0.0003863,14]
[354616049,1740595929316,-688.53,0.0003863,14]
[354616051,1740595929325,-11693.75,0.0003863,14]
[354616053,1740595929334,-2812.52,0.0003863,14]
[354616055,1740595929344,-861.86,0.0003863,14]
[354616057,1740595929354,-3063.11,0.0003863,14]
[354616059,1740595929364,-1132.99,0.0003863,14]
[354616061,1740595929376,-2332.02,0.0003863,14]
[354616063,1740595929386,-3032.5,0.0003863,14]
[354616065,1740595929395,-1403.52,0.0003863,14]
[354616067,1740595929404,-2514.92,0.0003863,14]
[354616069,1740595929414,-840.17,0.0003863,14]
[354616071,1740595929423,-3285.15,0.0003863,14]
[354616073,1740595929432,-1217.25,0.0003863,14]
[354616075,1740595929442,-2864.92,0.0003863,14]
[354616077,1740595929452,-829.58,0.0003863,14]
[354616079,1740595929461,-521.32,0.0003863,14]
[354616081,1740595929470,-1548.49,0.0003863,14]
[354616083,1740595929479,-1797.4,0.0003863,14]
[354616085,1740595929488,-384.63361998,0.0003863,14]
[354616087,1740595929497,-3783.79,0.0003863,14]
[354616089,1740595929506,-426.93977338,0.0003863,14]
[354616091,1740595929516,-1141.09,0.0003863,14]
[354616093,1740595929525,-577.91,0.0003863,14]
[354616095,1740595929535,-6297.9,0.0003863,14]
[354616097,1740595929544,-2194.13,0.0003863,14]
[354616099,1740595929553,-2625.14,0.0003863,14]
[354616101,1740595929562,-1289.77,0.0003863,14]
[354616103,1740595929571,-564.43,0.0003863,14]
[354616104,1740595929581,-2622.68,0.0003863,14]
[354616106,1740595929590,-3149.85,0.0003863,14]
[354616108,1740595929600,-806.4,0.0003863,14]
[354616110,1740595929609,-2632.85,0.0003863,14]
[354616112,1740595929619,-2112.2,0.0003863,14]
[354616114,1740595929632,-3833.32,0.0003863,14]
[354616116,1740595929642,-1648.8,0.0003863,14]
[354616118,1740595929652,-5487.93,0.0003863,14]
[354616120,1740595929661,-421.12350834,0.0003863,14]
[354616122,1740595929670,-2311.59,0.0003863,14]
[354616124,1740595929679,-974.58,0.0003863,14]
[354616126,1740595929690,-565.43,0.0003863,14]
[354616128,1740595929700,-1343.0,0.0003863,14]
[354616130,1740595929709,-11841.49,0.0003863,14]
[354616132,1740595929719,-567.13,0.0003863,14]
[354616134,1740595929729,-3413.54,0.0003863,14]
[354616136,1740595929738,-1833.27,0.0003863,14]
[354616138,1740595929748,-995.26,0.0003863,14]
[354616140,1740595929757,-1238.69,0.0003863,14]
[354616142,1740595929767,-3517.26,0.0003863,14]
[354616143,1740595929776,-1700.63,0.0003863,14]
[354616144,1740595929785,-7439.57,0.0003863,14]
[354616146,1740595929795,-2752.94,0.0003863,14]
[354616147,1740595929804,-4507.25,0.0003863,14]
[354616149,1740595929814,-1862.26,0.0003863,14]
[354616150,1740595929824,-1154.79,0.0003863,14]
[354616152,1740595929833,-639.34,0.0003863,14]
[354616153,1740595929843,-1572.85,0.0003863,14]
[354616155,1740595929852,-500.0,0.0003863,14]
[354616156,1740595929862,-3421.4,0.0003863,14]
[354616158,1740595929871,-1778.87,0.0003863,14]
[354616159,1740595929884,-1616.96,0.0003863,14]
[354616161,1740595929897,-696.16,0.0003863,14]
[354616162,1740595929907,-9182.73,0.0003863,14]
[354616164,1740595929918,-683.41,0.0003863,14]
[354616166,1740595929928,-6709.93,0.0003863,14]
[354616167,1740595929937,-682.72,0.0003863,14]
[354616168,1740595929947,-4316.65,0.0003863,14]
[354616170,1740595929957,-682.23,0.0003863,14]
[354616171,1740595929968,-546.58,0.0003863,14]
[354616173,1740595929977,-3317.95,0.0003863,14]
[354616175,1740595929987,-1576.59,0.0003863,14]
[354616176,1740595929996,-604.02,0.0003863,14]
[354616178,1740595930010,-500.0,0.0003863,14]
[354616179,1740595930021,-876.15,0.0003863,14]
[354616181,1740595930031,-1898.38,0.0003863,14]
[354616182,1740595930040,-3418.9,0.0003863,14]
[354616184,1740595930050,-749.16,0.0003863,14]
[354616186,1740595930060,-487.89826029,0.0003863,14]
[354616187,1740595930070,-2938.03,0.0003863,14]
[354616189,1740595930079,-1228.02,0.0003863,14]
[354616190,1740595930089,-2258.95,0.0003863,14]
[354616192,1740595930098,-1052.77,0.0003863,14]
[354616194,1740595930108,-500.0,0.0003863,14]
[354616195,1740595930117,-932.43,0.0003863,14]
[354616197,1740595930130,-1087.18,0.0003863,14]
[354616198,1740595930140,-3770.5,0.0003863,14]
[354616200,1740595930149,-4443.37,0.0003863,14]
[354616202,1740595930159,-4370.98,0.0003863,14]
[354616203,1740595930169,-841.55,0.0003863,14]
[354616205,1740595930180,-1077.8,0.0003863,14]
[354616207,1740595930190,-1662.55,0.0003863,14]
[354616208,1740595930200,-1684.75,0.0003863,14]
[354616210,1740595930210,-732.3,0.0003863,14]
[354616212,1740595930220,-669.42,0.0003863,14]
[354616213,1740595930230,-2153.43,0.0003863,14]
[354616215,1740595930240,-2455.03,0.0003863,14]
[354616216,1740595930250,-500.0,0.0003863,14]
[354616218,1740595930260,-555.94,0.0003863,14]
[354616220,1740595930270,-8707.22,0.0003863,14]
[354616221,1740595930280,-1962.86,0.0003863,14]
[354616223,1740595930290,-661.77,0.0003863,14]
[354616225,1740595930300,-14121.36,0.0003863,14]
[354616226,1740595930310,-1465.58,0.0003863,14]
[354616228,1740595930320,-3029.66,0.0003863,14]
[354616229,1740595930330,-500.0,0.0003863,14]
[354616231,1740595930340,-3158.55,0.0003863,14]
[354616233,1740595930350,-1124.82,0.0003863,14]
[354616234,1740595930360,-677.06,0.0003863,14]
[354616236,1740595930370,-1234.59,0.0003863,14]
[354616238,1740595930383,-1087.29,0.0003863,14]
[354616239,1740595930393,-1184.83,0.0003863,14]
[354616241,1740595930403,-766.23,0.0003863,14]
[354616243,1740595930414,-1001.3,0.0003863,14]
[354616244,1740595930424,-617.69,0.0003863,14]
[354616246,1740595930434,-1731.67,0.0003863,14]
[354616247,1740595930444,-3138.97,0.0003863,14]
[354616249,1740595930455,-493.24753358,0.0003863,14]
[354616251,1740595930465,-527.05,0.0003863,14]
[354616252,1740595930475,-1244.63,0.0003863,14]
[354616254,1740595930486,-850.11,0.0003863,14]
[354616256,1740595930496,-2099.68,0.0003863,14]
[354616257,1740595930505,-1394.32,0.0003863,14]
[354616259,1740595930515,-3802.94,0.0003863,14]
[354616261,1740595930534,-1086.92,0.0003863,14]
[354616263,1740595930546,-1256.63,0.0003863,14]
[354616264,1740595930556,-1776.24,0.0003863,14]
[354616266,1740595930566,-772.03,0.0003863,14]
[354616268,1740595930576,-500.0,0.0003863,14]
[354616269,1740595930587,-773.62,0.0003863,14]
[354616271,1740595930597,-666.36,0.0003863,14]
[354616273,1740595930607,-1317.17,0.0003863,14]
[354616274,1740595930616,-500.0,0.0003863,14]
[354616276,1740595930629,-500.0,0.0003863,14]
[354616278,1740595930639,-500.0,0.0003863,14]
[354616280,1740595930649,-2961.3,0.0003863,14]
[354616281,1740595930659,-4383.06,0.0003863,14]
[354616283,1740595930669,-1507.85,0.0003863,14]
[354616284,1740595930679,-1264.32,0.0003863,14]
[354616286,1740595930690,-1388.89,0.0003863,14]
[354616288,1740595930700,-556.93,0.0003863,14]
[354616289,1740595930711,-3155.81,0.0003863,14]
[354616291,1740595930720,-561.98,0.0003863,14]
[354616293,1740595930730,-2270.77,0.0003863,14]
[354616294,1740595930740,-593.99,0.0003863,14]
[354616296,1740595930751,-500.0,0.00038695,120]
[354616298,1740595930761,-291.57052636,0.00038712,2]
[354616299,1740595930772,-173.4,0.00038799,120]
[354616301,1740595930783,-1000.0,0.0003887,2]
[354616303,1740595930793,-300.0,0.000389,2]
[354616304,1740595930803,-600.0,0.000389,14]
[354616306,1740595930814,-212.08673115,0.000389,8]
[354616308,1740595930826,-2142.0,0.00038904,14]
[354616309,1740595930836,-1232.0,0.00038904,14]
[354616311,1740595930846,-672.636069,0.00038904,14]
[354616313,1740595930856,-500.0,0.00038904,14]
[354616315,1740595930866,-1501.590989,0.00038904,14]
[354616316,1740595930878,-676.71,0.00038904,14]
[354616318,1740595930888,-610.60836653,0.00038904,14]
[354616320,1740595930899,-870.39,0.00038904,14]
[354616321,1740595930909,-1090.2,0.00038904,14]
[354616323,1740595930919,-1069.27,0.00038904,14]
[354616325,1740595930929,-814.89,0.00038904,14]
[354616326,1740595930940,-500.0,0.00038904,14]
[354616328,1740595930950,-500.0,0.00038904,14]
[354616330,1740595930961,-1150.39,0.00038904,14]
[354616331,1740595930971,-500.0,0.00038904,14]
[354616333,1740595930981,-500.0,0.00038904,14]
[354616335,1740595930992,-701.36,0.00038904,14]
[354616336,1740595931004,-841.82,0.00038904,14]
[354616338,1740595931015,-500.0,0.00038904,14]
[354616340,1740595931026,-670.19,0.00038904,14]
[354616341,1740595931036,-300.0,0.00038904,14]
[354616343,1740595931048,-1844.05,0.00038904,14]
[354616345,1740595931062,-500.0,0.00038904,14]
[354616347,1740595931074,-747.92,0.00038904,14]
[354616348,1740595931085,-835.83,0.00038904,14]
[354616350,1740595931095,-738.6,0.00038904,14]
[354616352,1740595931105,-1533.87,0.00038904,14]
[354616353,1740595931115,-1414.25,0.00038904,14]
[354616355,1740595931127,-865.08,0.00038904,14]
[354616357,1740595931136,-633.98,0.00038904,14]
[354616358,1740595931147,-600.33,0.00038904,14]
[354616360,1740595931158,-500.0,0.00038904,14]
[354616362,1740595931169,-580.36,0.00038904,14]
[354616364,1740595931179,-742.35,0.00038904,14]
[354616365,1740595931190,-151.0,0.00038904,14]
[354616366,1740595931200,-732.49,0.00038904,14]
[354616367,1740595931210,-527.1,0.00038904,14]
[354616368,1740595931221,-500.0,0.00038904,14]
[354616369,1740595931231,-935.03,0.00038904,14]
[354616370,1740595931242,-543.41,0.00038904,14]
[354616371,1740595931252,-151.0,0.00038904,14]
[354616372,1740595931262,-317.68792703,0.00038904,14]
[354616373,1740595931273,-581.31,0.00038904,14]
[354616374,1740595931283,-689.42,0.00038904,14]
[354616375,1740595931294,-689.49,0.00038904,14]
[354616376,1740595931304,-571.34,0.00038904,14]
[354616377,1740595931314,-696.87,0.00038904,14]
[354616378,1740595931324,-1290.39,0.00038904,14]
[354616379,1740595931334,-546.44,0.00038904,14]
[354616381,1740595931344,-500.0,0.00038904,14]
[354616382,1740595931355,-594.86,0.00038904,14]
[354616384,1740595931365,-635.18,0.00038904,14]
[354616386,1740595931378,-858.4,0.00038904,14]
[354616388,1740595931388,-617.43,0.00038904,14]
[354616390,1740595931399,-500.0,0.00038904,14]
[354616392,1740595931409,-665.21,0.00038904,14]
[354616394,1740595931420,-500.0,0.00038904,14]
[354616396,1740595931430,-1850.02,0.00038904,14]
[354616398,1740595931441,-1161.63,0.00038904,14]
[354616400,1740595931451,-1036.04,0.00038904,14]
[354616402,1740595931462,-2240.29,0.00038904,14]
[354616404,1740595931472,-151.0,0.00038904,14]
[354616406,1740595931482,-500.0,0.00038904,14]
[354616408,1740595931492,-151.0,0.00038904,14]
[354616410,1740595931503,-500.0,0.00038904,14]
[354616412,1740595931513,-608.93,0.00038904,14]
[354616414,1740595931523,-2310.8,0.00038904,14]
[354616416,1740595931534,-500.0,0.00038904,14]
[354616418,1740595931544,-500.0,0.00038904,14]
[354616420,1740595931554,-161.064414,0.00038904,14]
[354616422,1740595931565,-161.064414,0.00038904,14]
[354616425,1740595931575,-1018.81,0.00038904,14]
[354616427,1740595931585,-500.0,0.00038904,14]
[354616429,1740595931595,-871.69,0.00038904,14]
[354616431,1740595931605,-151.0,0.00038904,14]
[354616433,1740595931615,-151.0,0.00038904,14]
[354616435,1740595931628,-151.0,0.00038904,7]
[354616437,1740595931638,-1006.27,0.00038904,14]
[354616439,1740595931648,-500.0,0.00038904,14]
[354616441,1740595931657,-151.0,0.00038904,14]
[354616443,1740595931668,-595.91,0.00038904,14]
[354616445,1740595931678,-1116.49,0.00038904,14]
[354616447,1740595931689,-641.45,0.00038904,14]
[354616449,1740595931699,-500.0,0.00038904,14]
[354616451,1740595931709,-772.83,0.00038904,14]
[354616453,1740595931719,-1308.99,0.00038904,14]
[354616455,1740595931729,-935.7,0.00038904,14]
[354616457,1740595931739,-872.15,0.00038904,14]
[354616459,1740595931750,-151.0,0.00038904,14]
[354616461,1740595931760,-500.0,0.00038904,14]
[354616463,1740595931770,-151.0,0.00038904,14]
[354616465,1740595931780,-500.0,0.00038904,14]
[354616468,1740595931790,-649.25,0.00038904,14]
[354616470,1740595931801,-500.0,0.00038904,14]
[354616472,1740595931811,-1082.33,0.00038904,14]
[354616474,1740595931821,-513.39,0.00038904,14]
[354616476,1740595931832,-500.0,0.00038904,14]
[354616478,1740595931842,-1176.81,0.00038904,14]
[354616480,1740595931855,-1686.11,0.00038904,14]
[354616482,1740595931865,-538.09,0.00038904,14]
[354616485,1740595931877,-547.24,0.00038904,14]
[354616487,1740595931887,-151.0,0.00038904,14]
[354616489,1740595931898,-811.61,0.00038904,14]
[354616491,1740595931910,-1804.38,0.00038904,14]
[354616493,1740595931920,-969.08,0.00038904,14]
[354616495,1740595931931,-2234.9,0.00038904,14]
[354616497,1740595931941,-877.13,0.00038904,14]
[354616499,1740595931951,-582.64,0.00038904,14]
[354616501,1740595931964,-500.0,0.00038904,14]
[354616503,1740595931975,-500.0,0.00038904,14]
[354616505,1740595931985,-500.0,0.00038904,14]
[354616507,1740595931997,-1855.35,0.00038904,14]
[354616509,1740595932008,-1019.59,0.00038904,14]
[354616512,1740595932020,-2120.11,0.00038904,14]
[354616514,1740595932031,-1021.29,0.00038904,14]
[354616516,1740595932042,-1613.94,0.00038904,14]
[354616518,1740595932056,-572.27,0.00038904,14]
[354616543,1740595932291,-531.94550851,0.00038904,14]
[354616545,1740595932302,-982.48,0.00038904,14]
[354616547,1740595932312,-1105.78,0.00038904,14]
[354616548,1740595932322,-2258.29,0.00038904,14]
[354616550,1740595932333,-500.0,0.00038904,14]
[354616553,1740595932345,-500.0,0.00038904,14]
[354616555,1740595932355,-1496.14,0.00038904,14]
[354616557,1740595932366,-782.62,0.00038904,14]
[354616559,1740595932379,-1313.98,0.00038904,14]
[354616560,1740595932390,-633.15,0.00038904,14]
[354616562,1740595932400,-500.0,0.00038904,14]
[354616564,1740595932411,-1614.67,0.00038904,14]
[354616566,1740595932421,-777.94,0.00038904,14]
[354616568,1740595932431,-1119.74,0.00038904,14]
[354616570,1740595932442,-630.05,0.00038904,14]
[354616572,1740595932452,-500.0,0.00038904,14]
[354616574,1740595932463,-1550.01,0.00038904,14]
[354616576,1740595932473,-500.0,0.00038904,14]
[354616578,1740595932483,-898.54,0.00038904,14]
[354616580,1740595932492,-986.29,0.00038904,14]
[354616582,1740595932502,-666.5,0.00038904,14]
[354616584,1740595932512,-166.367075,0.00038904,14]
[354616586,1740595932522,-1800.45,0.00038904,14]
[354616588,1740595932531,-1038.19,0.00038904,14]
[354616590,1740595932540,-722.35,0.00038904,14]
[354616592,1740595932550,-777.79,0.00038904,14]
[354616594,1740595932560,-151.956858,0.00038904,14]
[354616596,1740595932570,-1016.47,0.00038904,14]
[354616598,1740595932580,-583.31,0.00038904,14]
[354616600,1740595932590,-746.65,0.00038904,14]
[354616602,1740595932600,-529.67,0.00038904,14]
[354616604,1740595932610,-500.0,0.00038904,14]
[354616606,1740595932619,-500.0,0.00038904,14]
[354616608,1740595932632,-806.05,0.00038904,14]
[354616610,1740595932642,-886.7,0.00038904,14]
[354616612,1740595932652,-820.28,0.00038904,14]
[354616614,1740595932662,-1501.14,0.00038904,14]
[354616616,1740595932673,-535.371584,0.00038904,14]
[354616618,1740595932683,-500.0,0.00038904,14]
[354616620,1740595932693,-921.34,0.00038904,14]
[354616622,1740595932703,-500.0,0.00038904,14]
[354616624,1740595932713,-699.59,0.00038904,14]
[354616626,1740595932722,-1003.76,0.00038904,14]
[354616628,1740595932731,-500.0,0.00038904,14]
[354616630,1740595932741,-1495.63,0.00038904,14]
[354616632,1740595932750,-535.371584,0.00038904,14]
[354616634,1740595932760,-834.44,0.00038904,14]
[354616636,1740595932770,-831.3,0.00038904,14]
[354616638,1740595932780,-675.74,0.00038904,14]
[354616640,1740595932789,-917.03,0.00038904,14]
[354616642,1740595932799,-551.68,0.00038904,14]
[354616644,1740595932808,-681.62,0.00038904,14]
[354616646,1740595932818,-1958.47,0.00038904,14]
[354616648,1740595932828,-1067.6,0.00038904,14]
[354616650,1740595932837,-500.0,0.00038904,14]
[354616652,1740595932847,-636.63,0.00038904,14]
[354616654,1740595932856,-1007.51,0.00038904,14]
[354616656,1740595932866,-500.0,0.00038904,14]
[354616658,1740595932875,-826.67,0.00038904,14]
[354616660,1740595932887,-532.65,0.00038904,14]
[354616662,1740595932896,-1255.98,0.00038904,14]